bitfinex/quotes_SOLUSD_20230111
["timestamp","ask_amount","ask_price","bid_price","bid_amount"]
[1673460677716,20.0,15.766,15.734,20.0]
[1673460677913,27.43529,15.766,15.735,38.92]
[1673460678128,46.58025728,15.766,15.735,86.59]
[1673460678331,7.43529,15.765,15.735,86.59]
[1673460678544,20.0,15.759,15.736,20.0]
[1673460678753,1.92,15.758,15.735,67.67]
[1673460678974,85.66496728,15.758,15.735,47.67]
[1673460679160,19.14496728,15.757,15.735,47.67]
[1673460679377,18.92,15.756,15.731,47.69]
[1673460679586,18.92,15.756,15.732,20.0]
[1673460679587,20.0,15.755,15.732,20.0]
[1673460679796,1.92,15.754,15.732,20.0]
[1673460680007,67.61,15.755,15.732,20.0]
[1673460680008,166.7051,15.756,15.733,47.68]
[1673460680216,21.92,15.755,15.733,47.68]
[1673460680441,21.92,15.755,15.734,37.0]
[1673460680862,1.92,15.755,15.735,49.59]
[1673460681061,119.0951,15.756,15.736,20.0]
[1673460681271,119.0951,15.756,15.737,1.92]
[1673460681480,1.92,15.755,15.738,57.39660678]
[1673460681695,119.0951,15.756,15.738,57.39660678]
[1673460681906,131.8229,15.76,15.74,20.0]
[1673460682108,131.8229,15.76,15.741,77.38566784]
[1673460682341,131.8229,15.76,15.742,57.38202246]
[1673460682527,131.8229,15.76,15.743,20.0]
[1673460682735,131.8229,15.76,15.744,57.37473307]
[1673460682949,108.7629,15.76,15.745,20.96]
[1673460683158,108.7629,15.76,15.746,74.36744554]
[1673460683385,108.7629,15.76,15.747,58.32380247]
[1673460683599,108.7629,15.76,15.747,106.92380247]
[1673460683788,108.7629,15.76,15.748,57.36015986]
[1673460684210,108.7629,15.76,15.749,47.63]
[1673460684436,108.7629,15.76,15.75,74.35287603]
[1673460684644,108.7629,15.76,15.75,57.35287603]
[1673460684859,108.7629,15.76,15.745,20.0]
[1673460684860,108.7629,15.76,15.751,104.97923481]
[1673460685065,108.7629,15.76,15.752,57.34559405]
[1673460685894,23.08,15.77,15.753,67.62]
[1673460686098,23.08,15.77,15.754,57.33831392]
[1673460686325,110.9568,15.771,15.755,20.0]
[1673460686543,110.9568,15.771,15.756,57.33103564]
[1673460686745,110.9568,15.771,15.756,77.33103564]
[1673460686955,110.9568,15.771,15.74,42.92]
[1673460686956,47.58,15.767,15.74,20.0]
[1673460687167,100.95246529,15.755,15.74,20.0]
[1673460687376,27.43529,15.754,15.723,45.57533046]
[1673460687700,118.39209,15.753,15.727,47.7]
[1673460687892,164.73375841,15.753,15.724,47.71]
[1673460688108,109.4813,15.752,15.728,19.14496728]
[1673460688326,108.5213,15.752,15.728,19.14496728]
[1673460688541,108.5213,15.752,15.729,47.69]
[1673460688753,108.5213,15.752,15.729,67.19]
[1673460689067,131.4113,15.76,15.73,19.14496728]
[1673460689266,108.5213,15.76,15.731,27.33485]
[1673460689479,108.5213,15.76,15.732,45.54925762]
[1673460689807,115.95659,15.76,15.732,83.83919218]
[1673460690010,115.95659,15.76,15.731,67.69]
[1673460690011,67.6,15.759,15.733,112.37132975]
[1673460690202,67.6,15.759,15.734,65.5434677]
[1673460690410,131.3313,15.76,15.736,20.0]
[1673460690411,108.5213,15.76,15.736,20.0]
[1673460690648,108.5213,15.76,15.737,7.33205]
[1673460690860,108.5213,15.76,15.737,74.14701728]
[1673460691048,108.5213,15.76,15.738,20.0]
[1673460691262,108.5213,15.76,15.739,17.96]
[1673460691468,110.3005,15.765,15.74,20.0]
[1673460691687,110.3005,15.765,15.741,21.92]
[1673460692014,110.3005,15.765,15.741,201.57866728]
[1673460692209,110.3005,15.765,15.742,19.14496728]
[1673460692417,110.3005,15.765,15.744,20.0]
[1673460692646,110.3005,15.765,15.745,21.92]
[1673460692845,110.3005,15.765,15.746,17.0]
[1673460693039,110.3005,15.765,15.747,1.92]
[1673460693378,22.92,15.76,15.747,66.78496728]
[1673460693698,22.92,15.76,15.746,47.64]
[1673460693897,22.92,15.76,15.745,20.0]
[1673460694098,20.0,15.759,15.743,20.0]
[1673460694309,20.0,15.759,15.737,20.0]
[1673460694310,0.96,15.758,15.738,47.66]
[1673460694725,48.57,15.757,15.749,6.2080193]
[1673460694941,0.96,15.756,15.749,6.2080193]
[1673460695354,132.001,15.76,15.749,6.2080193]
[1673460695685,108.891,15.76,15.749,6.2080193]
[1673460695903,108.891,15.76,15.749,25.35298658]
[1673460696303,108.891,15.76,15.75,64.63]
[1673460696740,108.891,15.76,15.75,83.77496728]
[1673460696941,108.891,15.76,15.749,6.2080193]
[1673460697352,108.891,15.76,15.75,17.0]
[1673460697563,108.891,15.76,15.75,36.14496728]
[1673460697779,114.57,15.77,15.75,66.77496728]
[1673460697780,47.57,15.769,15.75,66.77496728]
[1673460697989,22.89,15.77,15.751,19.14496728]
[1673460698308,47.56,15.774,15.752,38.92]
[1673460698512,156.146,15.779,15.752,86.54]
[1673460698714,7.43529,15.775,15.753,39.14496728]
[1673460698941,7.43529,15.775,15.754,1.92]
[1673460699131,48.03338334,15.777,15.754,1.92]
[1673460699132,22.81,15.78,15.754,88.68496728]
[1673460699358,22.81,15.78,15.755,26.46864728]
[1673460699579,22.81,15.78,15.756,7.32321]
[1673460699906,108.606,15.783,15.757,1.92]
[1673460700102,114.6175,15.784,15.757,21.06496728]
[1673460700325,114.6175,15.784,15.758,86.74496728]
[1673460700532,114.6175,15.784,15.759,1.92]
[1673460700724,114.6175,15.784,15.759,61.06496728]
[1673460700938,114.6175,15.784,15.76,47.6]
[1673460701144,114.6175,15.784,15.761,21.92]
[1673460701579,114.6,15.78,15.762,20.0]
[1673460701794,27.43529,15.779,15.755,20.0]
[1673460701992,7.43529,15.778,15.755,20.0]
[1673460702203,22.92,15.77,15.756,19.27]
[1673460702530,69.47,15.777,15.756,19.27]
[1673460702717,130.2141,15.776,15.756,19.27]
[1673460702922,113.2141,15.776,15.756,19.27]
[1673460703576,47.53,15.783,15.757,39.14496728]
[1673460703768,20.0,15.788,15.757,66.46771728]
[1673460703979,47.52,15.787,15.76,22.88]
[1673460704209,23.1,15.79,15.761,45.28089]
[1673460704397,23.1,15.79,15.762,7.32042]
[1673460704612,23.1,15.79,15.763,21.92]
[1673460704827,19.14496728,15.797,15.764,1250.0]
[1673460705041,164.0896,15.799,15.765,17.96]
[1673460705237,47.49,15.796,15.767,20.0]
[1673460705449,47.48,15.798,15.768,1.92]
[1673460705660,116.6096,15.799,15.768,88.63496728]
[1673460705868,116.6096,15.799,15.769,24.31718]
[1673460706093,47.48,15.798,15.77,20.0]
[1673460706311,47.48,15.798,15.771,21.92]
[1673460706508,116.6096,15.799,15.772,37.0]
[1673460706717,47.48,15.798,15.773,0.96]
[1673460706939,161.8764,15.8,15.774,0.96]
[1673460707164,46.71,15.8,15.775,0.96]
[1673460707344,24.0,15.8,15.776,8.27393]
[1673460707559,24.0,15.8,15.776,55.82393]
[1673460707871,46.69,15.8,15.777,57.10496728]
[1673460708082,158.241,15.8,15.778,0.96]
[1673460708292,158.241,15.8,15.779,20.96]
[1673460708505,158.241,15.8,15.78,20.96]
[1673460708719,183.571783,15.8,15.781,17.96]
[1673460708930,183.571783,15.8,15.782,20.96]
[1673460709337,183.571783,15.8,15.783,36.14496728]
[1673460709559,47.48,15.799,15.783,36.14496728]
[1673460709775,231.051783,15.8,15.784,21.92]
[1673460710098,183.571783,15.8,15.797,6.2080193]
[1673460710301,49.330783,15.8,15.797,6.2080193]
[1673460711463,47.45,15.809,15.798,37.0]
[1673460711665,32.32292338,15.839,15.798,37.0]
[1673460711666,164.3401,15.815,15.798,37.0]
[1673460711879,45.50962027,15.823,15.798,37.0]
[1673460712092,47.44,15.814,15.798,37.0]
[1673460712409,47.44,15.814,15.797,6.2080193]
[1673460712410,25.314892,15.813,15.797,6.2080193]
[1673460712625,72.754892,15.813,15.797,6.2080193]
[1673460713360,72.754892,15.813,15.798,19.14496728]
[1673460713551,25.314892,15.813,15.798,47.48]
[1673460713763,25.314892,15.813,15.799,17.96]
[1673460713974,146.7641788,15.813,15.799,128.70047096]
[1673460714311,146.7641788,15.813,15.8,59.14496728]
[1673460714504,146.7641788,15.813,15.8,106.62496728]
[1673460714701,146.7641788,15.813,15.801,19.14496728]
[1673460714919,146.7641788,15.813,15.8,47.48]
[1673460715244,0.0022066,15.817,15.797,6.2080193]
[1673460715456,284.6329289,15.867,15.797,6.2080193]
[1673460715457,112.8299,15.851,15.802,20.0]
[1673460715646,7.43529,15.85,15.808,396.1]
[1673460716076,321.74754195,15.849,15.809,20.0]
[1673460716288,25.28902,15.833,15.809,39.14496728]
[1673460716521,25.28902,15.833,15.81,39.14496728]
[1673460716836,22.8,15.83,15.811,1.92]
[1673460717048,25.28902,15.833,15.811,68.50496728]
[1673460717351,25.28902,15.833,15.812,39.14496728]
[1673460717545,25.28902,15.833,15.813,20.0]
[1673460717763,25.28902,15.833,15.812,27.29728]
[1673460717764,113.6,15.83,15.814,17.0]
[1673460717966,121.18529,15.83,15.809,20.0]
[1673460718172,20.0,15.828,15.809,20.0]
[1673460718385,7.43529,15.828,15.809,20.0]
[1673460718591,47.4,15.827,15.802,20.0]
[1673460718819,47.4,15.827,15.809,20.0]
[1673460719225,25.29669,15.827,15.809,20.0]
[1673460719445,47.4,15.826,15.802,20.0]
[1673460719761,47.4,15.826,15.805,19.14496728]
[1673460719762,17.96,15.825,15.805,19.14496728]
[1673460719966,0.96,15.824,15.805,19.14496728]
[1673460720184,0.96,15.823,15.802,20.0]
[1673460720391,0.96,15.822,15.802,20.0]
[1673460720717,0.96,15.821,15.801,396.1]
[1673460720921,0.96,15.82,15.801,396.1]
[1673460721243,20.96,15.819,15.801,396.1]
[1673460721446,17.96,15.818,15.776,109.191]
[1673460721641,113.33,15.81,15.781,119.0334]
[1673460721870,38.92,15.809,15.776,109.191]
[1673460722058,20.0,15.808,15.777,47.55]
[1673460722289,38.92,15.807,15.779,43.22165361]
[1673460722501,86.38,15.807,15.779,43.22165361]
[1673460722687,86.38,15.807,15.78,66.68496728]
[1673460722688,93.81529,15.807,15.78,66.68496728]
[1673460722902,93.81529,15.807,15.78,19.14496728]
[1673460723119,7.43529,15.807,15.782,20.0]
[1673460723335,20.0,15.826,15.783,7.31068]
[1673460723336,47.42,15.818,15.783,7.31068]
[1673460723525,47.46,15.806,15.783,161.05885988]
[1673460723739,7.43529,15.817,15.784,43.22165361]
[1673460723740,54.86529,15.817,15.784,43.22165361]
[1673460723950,47.46,15.805,15.784,227.38215988]
[1673460724158,20.0,15.815,15.785,86.66496728]
[1673460724373,20.0,15.815,15.783,47.53]
[1673460724374,22.6,15.8,15.783,47.53]
[1673460724581,20.0,15.799,15.78,51.16223899]
[1673460724801,20.0,15.799,15.778,42.97693733]
[1673460724802,86.62496728,15.799,15.778,42.97693733]
[1673460725014,20.96,15.798,15.776,116.7119]
[1673460725215,22.72,15.79,15.774,47.56]
[1673460725427,22.72,15.79,15.769,42.97693733]
[1673460725428,21.92,15.789,15.769,90.54693733]
[1673460725956,20.0,15.787,15.766,47.58]
[1673460726169,1.92,15.786,15.766,47.58]
[1673460726487,66.44,15.786,15.766,47.58]
[1673460726710,49.44,15.786,15.765,113.5644]
[1673460726894,47.52,15.786,15.766,47.58]
[1673460727105,20.0,15.785,15.766,47.58]
[1673460727423,1.92,15.784,15.766,47.58]
[1673460727748,20.0,15.785,15.766,47.58]
[1673460728066,20.0,15.787,15.77,20.0]
[1673460728252,20.0,15.787,15.769,47.57]
[1673460728253,0.96,15.786,15.769,47.57]
[1673460728467,66.44,15.786,15.769,45.07]
[1673460728898,49.44,15.786,15.766,47.58]
[1673460729110,20.0,15.785,15.769,47.57]
[1673460729322,1.92,15.784,15.769,47.57]
[1673460729724,1.92,15.784,15.762,47.59]
[1673460729937,20.0,15.779,15.762,47.59]
[1673460730158,20.0,15.779,15.745,20.0]
[1673460730159,20.0,15.779,15.753,47.62]
[1673460730373,20.0,15.779,15.745,20.0]
[1673460730374,68.60496728,15.778,15.755,47.61]
[1673460730585,68.60496728,15.778,15.747,42.97693733]
[1673460730586,37.0,15.777,15.747,42.97693733]
[1673460730781,20.96,15.776,15.748,27.32693]
[1673460730984,17.0,15.775,15.748,94.10189728]
[1673460731195,20.96,15.774,15.749,19.14496728]
[1673460731408,17.96,15.773,15.749,19.14496728]
[1673460731726,17.96,15.773,15.747,42.97693733]
[1673460731727,113.67,15.77,15.75,47.63]
[1673460731941,20.0,15.768,15.748,47.63]
[1673460732162,17.0,15.767,15.747,47.64]
[1673460732368,0.96,15.766,15.747,47.64]
[1673460732590,0.96,15.765,15.746,2.69670872]
[1673460732776,0.96,15.764,15.747,66.78496728]
[1673460732991,0.96,15.764,15.748,20.0]
[1673460733213,0.96,15.763,15.747,66.78496728]
[1673460733530,0.96,15.762,15.746,2.69670872]
[1673460733846,0.96,15.761,15.746,2.69670872]
[1673460734040,0.96,15.76,15.746,2.69670872]
[1673460734253,0.96,15.759,15.746,2.69670872]
[1673460734564,20.0,15.764,15.746,2.69670872]
[1673460734796,47.58,15.765,15.747,47.64]
[1673460734992,22.64,15.77,15.748,20.0]
[1673460734993,47.58,15.767,15.748,20.0]
[1673460735202,47.58,15.767,15.747,66.78496728]
[1673460735417,66.72496728,15.767,15.746,2.69670872]
[1673460735738,20.0,15.766,15.746,22.69670872]
[1673460735921,20.0,15.766,15.747,47.64]
[1673460736136,20.0,15.766,15.746,2.69670872]
[1673460736137,22.72,15.76,15.746,2.69670872]
[1673460736348,38.92,15.759,15.746,2.69670872]
[1673460736574,21.92,15.759,15.746,2.69670872]
[1673460736792,20.0,15.758,15.74,16.841676]
[1673460737016,1.92,15.757,15.734,47.68]
[1673460737228,21.06496728,15.757,15.729,163.3517]
[1673460737433,64.61,15.756,15.732,19.14496728]
[1673460737645,1.92,15.755,15.732,19.14496728]
[1673460737835,21.92,15.755,15.733,47.68]
[1673460738049,64.62,15.754,15.733,47.68]
[1673460738260,64.62,15.754,15.734,20.0]
[1673460738261,47.62,15.754,15.734,20.0]
[1673460738486,67.6,15.758,15.734,39.14496728]
[1673460738683,47.62,15.753,15.735,47.67]
[1673460738895,20.0,15.751,15.734,19.14496728]
[1673460739203,20.0,15.75,15.734,19.14496728]
[1673460739419,47.61,15.756,15.734,19.14496728]
[1673460739628,47.61,15.757,15.735,47.67]
[1673460739856,47.61,15.755,15.736,20.0]
[1673460740066,67.61,15.756,15.736,20.0]
[1673460740376,47.62,15.754,15.731,47.69]
[1673460740694,47.61,15.755,15.732,20.0]
[1673460740906,20.0,15.754,15.732,20.0]
[1673460741122,17.0,15.753,15.733,47.68]
[1673460741325,1.92,15.752,15.734,20.0]
[1673460741522,21.92,15.752,15.734,39.14496728]
[1673460741729,20.0,15.756,15.735,66.81496728]
[1673460741939,20.0,15.759,15.736,40.0]
[1673460742154,20.0,15.759,15.736,178.81536728]
[1673460742377,20.0,15.759,15.71,232.71043486]
[1673460742590,47.61,15.757,15.714,119.0997]
[1673460742778,20.0,15.755,15.724,7.33812]
[1673460742990,20.0,15.754,15.724,55.04812]
[1673460743208,67.62,15.754,15.724,47.71]
[1673460743518,19.14496728,15.753,15.724,47.71]
[1673460743726,38.92,15.752,15.724,158.8445]
[1673460743940,20.0,15.751,15.725,20.0]
[1673460744138,38.92,15.75,15.725,20.0]
[1673460744349,69.55,15.75,15.726,47.7]
[1673460744571,20.0,15.75,15.726,47.7]
[1673460744793,22.75,15.75,15.728,20.0]
[1673460744981,117.8596,15.756,15.728,20.0]
[1673460744982,47.6,15.759,15.729,27.33578]
[1673460745194,22.9,15.76,15.73,7.33532]
[1673460745620,22.9,15.76,15.731,86.61]
[1673460745838,22.9,15.76,15.733,20.0]
[1673460746051,22.9,15.76,15.735,20.0]
[1673460746261,22.9,15.76,15.736,127.4523]
[1673460746569,1.0,15.755,15.737,20.0]
[1673460746782,1.0,15.755,15.738,17.0]
[1673460746996,1.0,15.755,15.738,64.66]
[1673460747394,1.92,15.754,15.738,64.66]
[1673460747603,68.68496728,15.754,15.731,47.69]
[1673460747815,37.0,15.753,15.731,47.69]
[1673460748033,21.92,15.752,15.729,67.69]
[1673460748239,17.0,15.751,15.729,47.69]
[1673460748448,21.92,15.75,15.726,47.7]
[1673460748660,69.55,15.75,15.724,47.71]
[1673460748868,56.14496728,15.749,15.725,20.0]
[1673460749098,1.92,15.748,15.725,20.0]
[1673460749415,68.69496728,15.748,15.726,47.7]
[1673460749622,55.28993456,15.747,15.726,47.7]
[1673460749932,41.06496728,15.746,15.726,47.7]
[1673460750148,37.0,15.745,15.724,47.71]
[1673460750366,22.94,15.74,15.724,47.71]
[1673460750565,17.96,15.739,15.724,47.71]
[1673460750765,20.96,15.738,15.72,114.2021]
[1673460750979,17.96,15.737,15.72,114.2021]
[1673460751188,20.0,15.736,15.72,114.2021]
[1673460751396,18.92,15.735,15.72,114.2021]
[1673460751601,22.82,15.73,15.72,114.2021]
[1673460751927,1.92,15.729,15.72,114.2021]
[1673460752252,69.61,15.729,15.714,20.0]
[1673460752652,22.82,15.73,15.714,20.0]
[1673460752878,47.67,15.735,15.715,47.73]
[1673460753102,22.78,15.74,15.715,47.73]
[1673460753407,40.0,15.739,15.715,47.73]
[1673460753607,20.0,15.739,15.724,47.71]
[1673460753820,40.0,15.739,15.716,47.73]
[1673460754018,20.0,15.739,15.716,47.73]
[1673460754229,20.0,15.739,15.717,20.0]
[1673460754436,19.14496728,15.743,15.724,47.71]
[1673460754653,20.0,15.747,15.726,20.0]
[1673460754860,47.63,15.749,15.727,18.92]
[1673460755077,47.63,15.751,15.727,66.62]
[1673460755295,47.6,15.758,15.728,27.33625]
[1673460755633,47.6,15.758,15.73,20.0]
[1673460755634,20.0,15.757,15.73,20.0]
[1673460755802,20.0,15.757,15.731,18.92]
[1673460756012,47.6,15.758,15.731,18.92]
[1673460756013,47.6,15.758,15.732,27.33438]
[1673460756219,42.9,15.76,15.733,9.25392]
[1673460756436,42.9,15.76,15.734,44.33345]
[1673460756437,22.9,15.76,15.734,44.33345]
[1673460756649,20.0,15.768,15.736,20.0]
[1673460756859,47.6,15.761,15.737,17.96]
[1673460757068,47.58,15.767,15.738,0.96]
[1673460757290,19.14496728,15.762,15.738,0.96]
[1673460757502,19.14496728,15.762,15.739,48.62]
[1673460757705,20.0,15.766,15.739,48.62]
[1673460757706,20.0,15.761,15.74,20.96]
[1673460757920,20.0,15.764,15.741,17.96]
[1673460758115,47.59,15.763,15.741,65.62]
[1673460758326,47.59,15.763,15.741,64.66]
[1673460758644,20.0,15.761,15.742,20.0]
[1673460758848,20.0,15.761,15.743,17.0]
[1673460759080,1.92,15.754,15.743,17.0]
[1673460759270,1.92,15.754,15.74,20.0]
[1673460759711,1.92,15.754,15.742,20.0]
[1673460760143,1.92,15.754,15.741,47.66]
[1673460760335,1.92,15.754,15.737,67.67]
[1673460761305,47.6,15.759,15.737,67.67]
[1673460761626,20.0,15.759,15.737,67.67]
[1673460761806,20.0,15.759,15.738,17.0]
[1673460762242,20.0,15.759,15.739,47.66]
[1673460762441,20.0,15.759,15.74,17.0]
[1673460762651,20.0,15.759,15.741,20.0]
[1673460762888,1.92,15.754,15.741,20.0]
[1673460763300,20.0,15.759,15.742,17.0]
[1673460763717,67.6,15.759,15.741,20.0]
[1673460764459,20.0,15.759,15.742,64.65]
[1673460764653,20.0,15.759,15.742,17.0]
[1673460764865,20.0,15.759,15.742,64.65]
[1673460765076,20.0,15.759,15.743,20.0]
[1673460765392,20.0,15.759,15.744,17.0]
[1673460765605,20.0,15.761,15.745,20.0]
[1673460765815,40.0,15.761,15.744,17.0]
[1673460766137,67.6,15.76,15.744,17.0]
[1673460766548,20.0,15.759,15.744,17.0]
[1673460766763,20.0,15.759,15.743,17.0]
[1673460767179,20.0,15.759,15.744,47.65]
[1673460767509,20.0,15.759,15.742,47.65]
[1673460767699,67.6,15.759,15.74,47.66]
[1673460768123,20.0,15.759,15.74,47.66]
[1673460768650,20.0,15.759,15.741,20.0]
[1673460768859,20.0,15.759,15.742,17.0]
[1673460769074,20.0,15.759,15.742,64.65]
[1673460769605,20.0,15.759,15.742,47.65]
[1673460769924,20.0,15.759,15.741,20.0]
[1673460770332,67.6,15.759,15.742,47.65]
[1673460770549,67.6,15.759,15.74,47.66]
[1673460770759,67.6,15.759,15.734,20.0]
[1673460770760,67.72496728,15.754,15.736,116.9819]
[1673460770971,20.0,15.753,15.736,116.9819]
[1673460771168,1.92,15.752,15.736,116.9819]
[1673460771798,38.92,15.749,15.736,116.9819]
[1673460772133,20.0,15.748,15.736,116.9819]
[1673460772342,21.92,15.749,15.736,116.9819]
[1673460772865,41.06496728,15.749,15.732,20.0]
[1673460773083,21.92,15.749,15.733,47.68]
[1673460773481,21.92,15.749,15.734,20.0]
[1673460774117,67.61,15.757,15.735,67.67]
[1673460774335,42.78,15.76,15.735,75.00299]
[1673460774544,42.78,15.76,15.736,27.33252]
[1673460774754,42.78,15.76,15.737,20.0]
[1673460774963,42.78,15.76,15.737,67.67]
[1673460774964,67.6,15.759,15.737,67.67]
[1673460775178,67.6,15.759,15.738,17.0]
[1673460775385,19.14496728,15.757,15.738,17.0]
[1673460775711,38.28993456,15.754,15.737,47.67]
[1673460775916,20.0,15.753,15.738,17.0]
[1673460776230,111.8005,15.758,15.737,64.67]
[1673460776438,39.14496728,15.759,15.738,20.0]
[1673460776655,20.0,15.759,15.739,17.0]
[1673460776850,20.0,15.759,15.739,64.66]
[1673460777264,20.0,15.759,15.74,20.0]
[1673460777474,20.0,15.759,15.741,17.0]
[1673460777695,20.0,15.759,15.741,64.66]
[1673460777912,19.14496728,15.756,15.738,47.66]
[1673460778129,21.0,15.755,15.738,47.66]
[1673460778331,21.06496728,15.754,15.734,47.68]
[1673460778530,22.94,15.75,15.734,47.68]
[1673460778736,21.92,15.749,15.734,47.68]
[1673460778961,1.92,15.754,15.732,20.0]
[1673460778962,0.96,15.754,15.737,67.67]
[1673460779285,1.0,15.755,15.737,86.81496728]
[1673460779497,1.0,15.755,15.738,19.14496728]
[1673460779805,1.0,15.755,15.739,47.67196405]
[1673460780118,22.78,15.77,15.74,109.75647133]
[1673460780337,20.0,15.769,15.741,26.25019]
[1673460780529,20.0,15.769,15.742,47.32973]
[1673460780737,47.54,15.778,15.75,22.92]
[1673460780948,22.89,15.78,15.751,162.64744]
[1673460781159,22.89,15.78,15.752,20.96]
[1673460781372,22.89,15.78,15.754,20.0]
[1673460781583,22.89,15.78,15.755,38.92]
[1673460781792,22.89,15.78,15.755,105.67496728]
[1673460782018,22.89,15.78,15.755,66.75496728]
[1673460782019,66.68496728,15.779,15.755,66.75496728]
[1673460782240,260.18496728,15.779,15.754,47.62]
[1673460782444,193.5,15.777,15.754,47.62]
[1673460782653,22.94,15.77,15.753,47.62]
[1673460783927,7.33,15.775,15.754,20.0]
[1673460784122,19.14496728,15.777,15.754,20.0]
[1673460784334,20.0,15.791,15.755,47.61]
[1673460784667,7.33,15.776,15.755,47.61]
[1673460784975,20.0,15.779,15.756,20.0]
[1673460785183,7.331,15.775,15.756,20.0]
[1673460785383,1.92,15.774,15.758,20.0]
[1673460786239,27.33,15.778,15.758,20.0]
[1673460786441,114.99,15.78,15.759,47.6]
[1673460786442,23.16,15.78,15.759,47.6]
[1673460786658,47.54,15.779,15.759,163.3871]
[1673460787065,47.54,15.779,15.758,20.0]
[1673460787066,20.0,15.778,15.758,20.0]
[1673460787404,22.8,15.77,15.755,47.61]
[1673460787586,22.8,15.77,15.751,163.4171]
[1673460787800,193.5,15.776,15.752,115.7896]
[1673460787801,48.53,15.769,15.752,115.7896]
[1673460788022,49.49,15.769,15.752,115.7896]
[1673460788225,18.92,15.769,15.752,115.7896]
[1673460788440,47.57,15.768,15.753,20.0]
[1673460788756,18.92,15.767,15.748,47.63]
[1673460788973,22.86,15.76,15.745,67.64]
[1673460789182,1.92,15.759,15.745,67.64]
[1673460789631,1.92,15.759,15.744,155.8946]
[1673460790034,1.92,15.759,15.744,175.03956728]
[1673460790252,1.92,15.759,15.745,20.0]
[1673460790465,18.92,15.759,15.744,108.2446]
[1673460790870,1.92,15.759,15.744,108.2446]
[1673460791192,20.0,15.764,15.745,66.78496728]
[1673460791403,1.92,15.763,15.746,20.0]
[1673460791620,0.96,15.763,15.747,17.0]
[1673460791824,35.04,15.769,15.747,83.78496728]
[1673460792040,20.0,15.769,15.748,40.34084405]
[1673460792239,20.0,15.769,15.75,20.0]
[1673460792450,20.0,15.769,15.751,17.0]
[1673460792661,213.5,15.769,15.747,47.64]
[1673460792886,228.78,15.768,15.747,47.64]
[1673460793413,228.78,15.768,15.745,47.64]
[1673460793414,21.92,15.767,15.745,47.64]
[1673460793621,20.0,15.766,15.745,47.64]
[1673460793829,18.92,15.765,15.744,108.2446]
[1673460794040,20.0,15.764,15.744,108.2446]
[1673460794238,20.0,15.762,15.744,108.2446]
[1673460794448,37.96,15.761,15.744,155.8946]